[Event "Late-Titled-Tuesday-Blitz-June-04-2024"]
[Site "Chess.com"]
[Date "2024.06.04"]
[Round "5"]
[White "mbojan"]
[Black "denizozen"]
[Result "0-1"]
[WhiteElo "2848"]
[BlackElo "2945"]
[TimeControl "180+1"]
[EndTime "14:55:18 PDT"]
[Termination "denizozen won by checkmate"]

1. a3 {[%clk 0:03:00.9]} 1... d5 {[%clk 0:02:58.2]} 2. h3 {[%clk 0:03:00.2]}
2... e5 {[%clk 0:02:57.8]} 3. e3 {[%clk 0:03:00.3]} 3... Nf6 {[%clk 0:02:58]} 4.
d4 {[%clk 0:03:00.6]} 4... exd4 {[%clk 0:02:57.3]} 5. exd4 {[%clk 0:03:01.5]}
5... c5 {[%clk 0:02:51.8]} 6. Nf3 {[%clk 0:02:57]} 6... Nc6 {[%clk 0:02:51.4]}
7. Be3 {[%clk 0:02:54.7]} 7... Qb6 {[%clk 0:02:45.3]} 8. Nc3 {[%clk 0:02:46.4]}
8... cxd4 {[%clk 0:02:34]} 9. Nxd4 {[%clk 0:02:43.9]} 9... Qc7 {[%clk
0:01:54.4]} 10. Ncb5 {[%clk 0:02:33]} 10... Qe5 {[%clk 0:01:29.1]} 11. Nf3
{[%clk 0:02:06.4]} 11... Qb8 {[%clk 0:01:21.8]} 12. Qd2 {[%clk 0:01:54.7]} 12...
Bd6 {[%clk 0:01:19.4]} 13. Nxd6+ {[%clk 0:01:54.6]} 13... Qxd6 {[%clk
0:01:20.3]} 14. O-O-O {[%clk 0:01:38.9]} 14... O-O {[%clk 0:01:20.3]} 15. Bd3
{[%clk 0:01:39.3]} 15... Be6 {[%clk 0:01:18.2]} 16. g4 {[%clk 0:01:35.3]} 16...
Rac8 {[%clk 0:01:18.1]} 17. Kb1 {[%clk 0:01:34.9]} 17... a6 {[%clk 0:01:03.9]}
18. Rhe1 {[%clk 0:01:34.4]} 18... Rfd8 {[%clk 0:00:59.3]} 19. Nd4 {[%clk
0:01:15.7]} 19... Ne4 {[%clk 0:00:55.6]} 20. Bxe4 {[%clk 0:00:57.2]} 20... dxe4
{[%clk 0:00:56.5]} 21. Nxc6 {[%clk 0:00:57.5]} 21... Rxc6 {[%clk 0:00:41.8]} 22.
Qc1 {[%clk 0:00:47.8]} 22... Qe7 {[%clk 0:00:35.9]} 23. Bg5 {[%clk 0:00:39]}
23... f6 {[%clk 0:00:34.8]} 24. Bf4 {[%clk 0:00:39.4]} 24... Bf7 {[%clk
0:00:33]} 25. Rxd8+ {[%clk 0:00:34.5]} 25... Qxd8 {[%clk 0:00:33.9]} 26. Rd1
{[%clk 0:00:34.7]} 26... Qc8 {[%clk 0:00:31.2]} 27. Qd2 {[%clk 0:00:30.5]} 27...
g5 {[%clk 0:00:31.5]} 28. Be3 {[%clk 0:00:30.2]} 28... Qe6 {[%clk 0:00:30.5]}
29. b3 {[%clk 0:00:29.1]} 29... Kg7 {[%clk 0:00:25.4]} 30. Qd4 {[%clk
0:00:25.4]} 30... h6 {[%clk 0:00:21.8]} 31. Kb2 {[%clk 0:00:25.6]} 31... b5
{[%clk 0:00:20.5]} 32. Rd2 {[%clk 0:00:25.9]} 32... a5 {[%clk 0:00:19.1]} 33. a4
{[%clk 0:00:19.6]} 33... b4 {[%clk 0:00:16.9]} 34. Kb1 {[%clk 0:00:16.9]} 34...
Rc3 {[%clk 0:00:16.7]} 35. Qd6 {[%clk 0:00:13.7]} 35... Qc8 {[%clk 0:00:14.2]}
36. Qd4 {[%clk 0:00:06.2]} 36... Qc6 {[%clk 0:00:10.9]} 37. Kb2 {[%clk
0:00:05.7]} 37... Qe6 {[%clk 0:00:10.3]} 38. Qd6 {[%clk 0:00:04]} 38... Qc8
{[%clk 0:00:10.6]} 39. Qd4 {[%clk 0:00:03.1]} 39... Rc6 {[%clk 0:00:11.3]} 40.
Qd7 {[%clk 0:00:02.6]} 40... Rxc2+ {[%clk 0:00:10.1]} 41. Kb1 {[%clk 0:00:03.2]}
41... Rc1+ {[%clk 0:00:10.6]} 42. Kb2 {[%clk 0:00:03.5]} 42... Qc3+ {[%clk
0:00:10.4]} 43. Ka2 {[%clk 0:00:03.5]} 43... Ra1# {[%clk 0:00:11.3]} 0-1

[Event "Late-Titled-Tuesday-Blitz-June-04-2024"]
[Site "Chess.com"]
[Date "2024.06.04"]
[Round "5"]
[White "FMOlexandrProhorov"]
[Black "subham777"]
[Result "0-1"]
[WhiteElo "2369"]
[BlackElo "2552"]
[TimeControl "180+1"]
[EndTime "14:55:21 PDT"]
[Termination "subham777 won on time"]

1. d4 {[%clk 0:02:59.5]} 1... d5 {[%clk 0:02:59.1]} 2. c4 {[%clk 0:02:59.1]}
2... e6 {[%clk 0:02:58.9]} 3. Nc3 {[%clk 0:02:59.8]} 3... Nf6 {[%clk 0:02:58.6]}
4. Nf3 {[%clk 0:03:00.5]} 4... Be7 {[%clk 0:02:57.6]} 5. Bf4 {[%clk 0:03:01.1]}
5... O-O {[%clk 0:02:56.8]} 6. e3 {[%clk 0:03:01.7]} 6... Ne4 {[%clk 0:02:56.2]}
7. Bd3 {[%clk 0:02:59.9]} 7... f5 {[%clk 0:02:55.7]} 8. Qc2 {[%clk 0:02:55.2]}
8... c6 {[%clk 0:02:54.7]} 9. h3 {[%clk 0:02:55.5]} 9... Nd7 {[%clk 0:02:53.3]}
10. g4 {[%clk 0:02:46.4]} 10... Qa5 {[%clk 0:02:40.2]} 11. Ke2 {[%clk
0:02:33.6]} 11... Bb4 {[%clk 0:02:22.7]} 12. gxf5 {[%clk 0:02:25.3]} 12... exf5
{[%clk 0:02:19.2]} 13. cxd5 {[%clk 0:02:22.1]} 13... Bxc3 {[%clk 0:02:02]} 14.
dxc6 {[%clk 0:02:18.7]} 14... bxc6 {[%clk 0:01:55.2]} 15. bxc3 {[%clk
0:02:16.9]} 15... Nxc3+ {[%clk 0:01:54]} 16. Kf1 {[%clk 0:02:17.3]} 16... Nf6
{[%clk 0:01:49.6]} 17. Rc1 {[%clk 0:02:11.7]} 17... Nfd5 {[%clk 0:01:34.1]} 18.
Be5 {[%clk 0:02:03.3]} 18... Ba6 {[%clk 0:01:28.9]} 19. Rg1 {[%clk 0:01:58.8]}
19... g6 {[%clk 0:01:28.6]} 20. h4 {[%clk 0:01:53.6]} 20... Qxa2 {[%clk
0:01:26]} 21. Bxa6 {[%clk 0:01:47.3]} 21... Qxa6+ {[%clk 0:01:22.9]} 22. Kg2
{[%clk 0:01:34.7]} 22... Qe2 {[%clk 0:01:15.5]} 23. Qb3 {[%clk 0:01:28.7]} 23...
Ne4 {[%clk 0:00:56.6]} 24. Rc2 {[%clk 0:01:22.4]} 24... Qa6 {[%clk 0:00:40.6]}
25. h5 {[%clk 0:01:18.9]} 25... Qb5 {[%clk 0:00:35.1]} 26. Qa2 {[%clk 0:01:09]}
26... Rf7 {[%clk 0:00:24.6]} 27. hxg6 {[%clk 0:01:02]} 27... hxg6 {[%clk
0:00:25.5]} 28. Rh1 {[%clk 0:01:01.6]} 28... Rh7 {[%clk 0:00:22]} 29. Rxh7
{[%clk 0:00:44.5]} 29... Kxh7 {[%clk 0:00:22.9]} 30. Qa1 {[%clk 0:00:32.6]}
30... Ndf6 {[%clk 0:00:15.2]} 31. Qb2 {[%clk 0:00:24.2]} 31... Qxb2 {[%clk
0:00:13.3]} 32. Rxb2 {[%clk 0:00:24.4]} 32... a5 {[%clk 0:00:12.3]} 33. Ng5+
{[%clk 0:00:18.9]} 33... Nxg5 {[%clk 0:00:07.7]} 34. Bxf6 {[%clk 0:00:19]} 34...
Ne4 {[%clk 0:00:08]} 35. Rb7+ {[%clk 0:00:15.8]} 35... Kg8 {[%clk 0:00:07.5]}
36. Be5 {[%clk 0:00:12.7]} 36... a4 {[%clk 0:00:07]} 37. Rg7+ {[%clk 0:00:08.2]}
37... Kf8 {[%clk 0:00:07.3]} 38. Rh7 {[%clk 0:00:06.5]} 38... Ra6 {[%clk
0:00:07.7]} 39. Rh8+ {[%clk 0:00:02]} 39... Kf7 {[%clk 0:00:07.6]} 40. Rh7+
{[%clk 0:00:01.2]} 40... Ke6 {[%clk 0:00:07.3]} 0-1

[Event "Late-Titled-Tuesday-Blitz-June-04-2024"]
[Site "Chess.com"]
[Date "2024.06.04"]
[Round "5"]
[White "zacachess"]
[Black "JEIGOTH"]
[Result "1-0"]
[WhiteElo "2526"]
[BlackElo "2303"]
[TimeControl "180+1"]
[EndTime "14:55:23 PDT"]
[Termination "zacachess won on time"]

1. e4 {[%clk 0:03:00]} 1... d6 {[%clk 0:02:58.4]} 2. d4 {[%clk 0:02:59.6]} 2...
Nd7 {[%clk 0:02:58.5]} 3. Nf3 {[%clk 0:02:58.9]} 3... e5 {[%clk 0:02:58.1]} 4.
Nc3 {[%clk 0:02:57.1]} 4... Ngf6 {[%clk 0:02:56.5]} 5. Bc4 {[%clk 0:02:56.4]}
5... Be7 {[%clk 0:02:56.7]} 6. O-O {[%clk 0:02:55.5]} 6... O-O {[%clk
0:02:55.9]} 7. a4 {[%clk 0:02:55]} 7... c6 {[%clk 0:02:54]} 8. h3 {[%clk
0:02:55]} 8... b6 {[%clk 0:02:52.2]} 9. Be3 {[%clk 0:02:50.5]} 9... a6 {[%clk
0:02:48.6]} 10. Ba2 {[%clk 0:02:50]} 10... Bb7 {[%clk 0:02:45.2]} 11. Re1 {[%clk
0:02:35]} 11... b5 {[%clk 0:02:43.8]} 12. b4 {[%clk 0:02:35.4]} 12... Qc7 {[%clk
0:02:31.6]} 13. Qd3 {[%clk 0:02:31.3]} 13... bxa4 {[%clk 0:02:16.7]} 14. Nxa4
{[%clk 0:02:10.9]} 14... a5 {[%clk 0:02:16.3]} 15. dxe5 {[%clk 0:01:33.6]} 15...
dxe5 {[%clk 0:02:07.8]} 16. bxa5 {[%clk 0:01:29]} 16... Rxa5 {[%clk 0:02:04.4]}
17. Bb3 {[%clk 0:01:18.3]} 17... Rfa8 {[%clk 0:01:57.2]} 18. Bd2 {[%clk
0:01:15.1]} 18... R5a7 {[%clk 0:01:36.7]} 19. Qf1 {[%clk 0:01:03.2]} 19... Nc5
{[%clk 0:01:23]} 20. Nxc5 {[%clk 0:00:58.4]} 20... Rxa1 {[%clk 0:01:19.3]} 21.
Rxa1 {[%clk 0:00:58]} 21... Rxa1 {[%clk 0:01:19.9]} 22. Qxa1 {[%clk 0:00:58.7]}
22... Bxc5 {[%clk 0:01:20.2]} 23. Nxe5 {[%clk 0:00:55.9]} 23... Nxe4 {[%clk
0:01:14.5]} 24. Be1 {[%clk 0:00:47.4]} 24... Nd6 {[%clk 0:00:58.9]} 25. Qc3
{[%clk 0:00:41.3]} 25... Bb6 {[%clk 0:00:43.4]} 26. Qf3 {[%clk 0:00:40.7]} 26...
c5 {[%clk 0:00:37.6]} 27. Bd5 {[%clk 0:00:40.6]} 27... Bxd5 {[%clk 0:00:30.1]}
28. Qxd5 {[%clk 0:00:41.5]} 28... g6 {[%clk 0:00:29.4]} 29. Bc3 {[%clk
0:00:41.2]} 29... c4 {[%clk 0:00:19.1]} 30. Ng4 {[%clk 0:00:40.2]} 30... h5
{[%clk 0:00:14.2]} 31. Nf6+ {[%clk 0:00:40.2]} 31... Kf8 {[%clk 0:00:14.6]} 32.
Bb4 {[%clk 0:00:37.6]} 32... Kg7 {[%clk 0:00:11.7]} 33. Bxd6 {[%clk 0:00:34.8]}
33... Qa7 {[%clk 0:00:09.7]} 34. Ne8+ {[%clk 0:00:33.6]} 34... Kg8 {[%clk
0:00:08.2]} 35. Nf6+ {[%clk 0:00:31.1]} 35... Kg7 {[%clk 0:00:08]} 36. Ne4
{[%clk 0:00:31.7]} 36... Qa1+ {[%clk 0:00:06.9]} 37. Kh2 {[%clk 0:00:30.7]}
37... f6 {[%clk 0:00:05.4]} 38. Qe6 {[%clk 0:00:29.5]} 38... Qa7 {[%clk
0:00:02.8]} 39. Be7 {[%clk 0:00:27]} 39... Bd4 {[%clk 0:00:01.6]} 40. Bxf6+
{[%clk 0:00:25.9]} 40... Bxf6 {[%clk 0:00:02.1]} 41. Qxf6+ {[%clk 0:00:26.2]}
41... Kh6 {[%clk 0:00:02]} 42. h4 {[%clk 0:00:24.5]} 42... Qc7+ {[%clk
0:00:01.9]} 43. g3 {[%clk 0:00:24.1]} 43... Qb7 {[%clk 0:00:01]} 44. Qh8+ {[%clk
0:00:23.2]} 1-0

[Event "Late-Titled-Tuesday-Blitz-June-04-2024"]
[Site "Chess.com"]
[Date "2024.06.04"]
[Round "5"]
[White "alexrustemov"]
[Black "Duhless"]
[Result "0-1"]
[WhiteElo "2819"]
[BlackElo "3108"]
[TimeControl "180+1"]
[EndTime "14:55:24 PDT"]
[Termination "Duhless won on time"]

1. d4 {[%clk 0:02:56.5]} 1... Nf6 {[%clk 0:02:59.5]} 2. c4 {[%clk 0:02:56.9]}
2... g6 {[%clk 0:02:59.2]} 3. Nf3 {[%clk 0:02:57.2]} 3... Bg7 {[%clk 0:02:59.3]}
4. g3 {[%clk 0:02:57.9]} 4... b6 {[%clk 0:02:56.5]} 5. Bg2 {[%clk 0:02:57.7]}
5... Bb7 {[%clk 0:02:57.2]} 6. O-O {[%clk 0:02:57.8]} 6... O-O {[%clk
0:02:57.9]} 7. d5 {[%clk 0:02:57.8]} 7... Na6 {[%clk 0:02:57.3]} 8. Nc3 {[%clk
0:02:57.9]} 8... Nc5 {[%clk 0:02:57.6]} 9. Re1 {[%clk 0:02:58]} 9... e6 {[%clk
0:02:53]} 10. e4 {[%clk 0:02:57.1]} 10... d6 {[%clk 0:02:53.1]} 11. h3 {[%clk
0:02:48.3]} 11... a5 {[%clk 0:02:52.7]} 12. Be3 {[%clk 0:02:46.8]} 12... Ncxe4
{[%clk 0:02:32.6]} 13. Nxe4 {[%clk 0:02:34]} 13... Nxe4 {[%clk 0:02:33.5]} 14.
dxe6 {[%clk 0:02:08.7]} 14... fxe6 {[%clk 0:02:34.4]} 15. Nd4 {[%clk 0:01:59.2]}
15... Qd7 {[%clk 0:02:33.3]} 16. Qc2 {[%clk 0:01:58.3]} 16... Nc5 {[%clk
0:02:30.6]} 17. Bxb7 {[%clk 0:01:53.5]} 17... Nxb7 {[%clk 0:02:31.5]} 18. Rad1
{[%clk 0:01:47.2]} 18... Rae8 {[%clk 0:02:27.6]} 19. Kh2 {[%clk 0:01:39.1]}
19... Qf7 {[%clk 0:02:23.2]} 20. Nb5 {[%clk 0:01:36.5]} 20... Nd8 {[%clk
0:02:20]} 21. b3 {[%clk 0:01:33]} 21... e5 {[%clk 0:01:55.3]} 22. Qe4 {[%clk
0:01:31.7]} 22... Ne6 {[%clk 0:01:50.3]} 23. Qd5 {[%clk 0:01:23.9]} 23... h5
{[%clk 0:01:46.4]} 24. h4 {[%clk 0:01:23.6]} 24... Kh7 {[%clk 0:01:45.2]} 25. a3
{[%clk 0:01:23.1]} 25... Bh6 {[%clk 0:01:44.1]} 26. b4 {[%clk 0:01:14.4]} 26...
axb4 {[%clk 0:01:25.8]} 27. axb4 {[%clk 0:01:15.3]} 27... g5 {[%clk 0:01:21.2]}
28. hxg5 {[%clk 0:01:14.1]} 28... Bxg5 {[%clk 0:01:20.9]} 29. Qe4+ {[%clk
0:01:08]} 29... Kg7 {[%clk 0:01:12.3]} 30. Rd2 {[%clk 0:01:07.4]} 30... Bxe3
{[%clk 0:01:09.1]} 31. Rxe3 {[%clk 0:01:05.7]} 31... Ng5 {[%clk 0:01:08.2]} 32.
Qh4 {[%clk 0:00:57.6]} 32... Kg6 {[%clk 0:00:52.8]} 33. Kg2 {[%clk 0:00:39.3]}
33... Re6 {[%clk 0:00:46.7]} 34. Rde2 {[%clk 0:00:36.8]} 34... Rf6 {[%clk
0:00:45.1]} 35. g4 {[%clk 0:00:09.1]} 35... hxg4 {[%clk 0:00:43.8]} 36. Nc3
{[%clk 0:00:04.1]} 36... Rf3 {[%clk 0:00:21.3]} 37. Ne4 {[%clk 0:00:03]} 37...
Qf5 {[%clk 0:00:19.3]} 38. Ng3 {[%clk 0:00:01]} 38... Rxf2+ {[%clk 0:00:18.2]}
39. Kg1 {[%clk 0:00:01.6]} 39... Qb1+ {[%clk 0:00:10.6]} 40. Re1 {[%clk
0:00:01.1]} 40... Nf3+ {[%clk 0:00:11.3]} 0-1

[Event "Late-Titled-Tuesday-Blitz-June-04-2024"]
[Site "Chess.com"]
[Date "2024.06.04"]
[Round "5"]
[White "omer1997"]
[Black "guillembaches"]
[Result "1-0"]
[WhiteElo "2526"]
[BlackElo "2488"]
[TimeControl "180+1"]
[EndTime "14:55:25 PDT"]
[Termination "omer1997 won on time"]

1. e4 {[%clk 0:02:53.9]} 1... c5 {[%clk 0:02:59.6]} 2. Nf3 {[%clk 0:02:46.5]}
2... d6 {[%clk 0:03:00.1]} 3. c3 {[%clk 0:02:45.3]} 3... Nf6 {[%clk 0:02:59.1]}
4. Bd3 {[%clk 0:02:45.8]} 4... b6 {[%clk 0:02:53.9]} 5. O-O {[%clk 0:02:40]}
5... Bb7 {[%clk 0:02:53.9]} 6. Re1 {[%clk 0:02:40.1]} 6... Nbd7 {[%clk
0:02:52.3]} 7. Bc2 {[%clk 0:02:39.7]} 7... e5 {[%clk 0:02:49.4]} 8. d3 {[%clk
0:02:38.8]} 8... g6 {[%clk 0:02:46.5]} 9. a4 {[%clk 0:02:38.7]} 9... a6 {[%clk
0:02:43.9]} 10. d4 {[%clk 0:02:30.5]} 10... Bg7 {[%clk 0:02:41.9]} 11. Na3
{[%clk 0:02:15.2]} 11... exd4 {[%clk 0:02:34.8]} 12. cxd4 {[%clk 0:02:15.2]}
12... O-O {[%clk 0:02:34.6]} 13. Nc4 {[%clk 0:02:11]} 13... d5 {[%clk
0:02:18.1]} 14. Nd6 {[%clk 0:02:03.7]} 14... Qc7 {[%clk 0:02:18.1]} 15. e5
{[%clk 0:01:58.5]} 15... Ne4 {[%clk 0:02:18.3]} 16. Nxe4 {[%clk 0:01:50.6]}
16... dxe4 {[%clk 0:02:17.5]} 17. Bxe4 {[%clk 0:01:47.4]} 17... Bxe4 {[%clk
0:02:14.6]} 18. Rxe4 {[%clk 0:01:48.3]} 18... cxd4 {[%clk 0:02:09.3]} 19. Bf4
{[%clk 0:01:38.8]} 19... Qb7 {[%clk 0:01:53.7]} 20. Rxd4 {[%clk 0:01:35.5]}
20... Nc5 {[%clk 0:01:51.5]} 21. Bg3 {[%clk 0:01:26.6]} 21... Rfe8 {[%clk
0:01:47.4]} 22. b4 {[%clk 0:01:26.1]} 22... Ne4 {[%clk 0:01:35.6]} 23. Rd7
{[%clk 0:01:21.7]} 23... Qc6 {[%clk 0:01:35.8]} 24. Rc1 {[%clk 0:01:18.3]} 24...
Qe6 {[%clk 0:01:28.2]} 25. Rcc7 {[%clk 0:01:13.8]} 25... Nxg3 {[%clk 0:01:18.1]}
26. hxg3 {[%clk 0:01:14.7]} 26... Rf8 {[%clk 0:01:14]} 27. Re7 {[%clk
0:00:54.1]} 27... Qa2 {[%clk 0:01:02.9]} 28. e6 {[%clk 0:00:43.5]} 28... Rad8
{[%clk 0:01:02.5]} 29. exf7+ {[%clk 0:00:41.6]} 29... Kh8 {[%clk 0:01:02.8]} 30.
Qxd8 {[%clk 0:00:30.2]} 30... Rxd8 {[%clk 0:00:41.4]} 31. Re8+ {[%clk
0:00:27.1]} 31... Bf8 {[%clk 0:00:41.8]} 32. Rxd8 {[%clk 0:00:27]} 32... Kg7
{[%clk 0:00:42.3]} 33. Rcc8 {[%clk 0:00:20.2]} 33... Bxb4 {[%clk 0:00:40.2]} 34.
f8=Q+ {[%clk 0:00:18]} 34... Bxf8 {[%clk 0:00:40.2]} 35. Rxf8 {[%clk 0:00:18.9]}
35... Qxa4 {[%clk 0:00:39.3]} 36. Rg8+ {[%clk 0:00:18.5]} 36... Kh6 {[%clk
0:00:38.2]} 37. Kh2 {[%clk 0:00:14.4]} 37... Qa2 {[%clk 0:00:28.4]} 38. Rc7
{[%clk 0:00:11.8]} 38... g5 {[%clk 0:00:20.3]} 39. Rc6+ {[%clk 0:00:08.8]} 1-0

[Event "Late-Titled-Tuesday-Blitz-June-04-2024"]
[Site "Chess.com"]
[Date "2024.06.04"]
[Round "5"]
[White "chessdjw"]
[Black "zverr1"]
[Result "0-1"]
[WhiteElo "2762"]
[BlackElo "2617"]
[TimeControl "180+1"]
[EndTime "14:55:26 PDT"]
[Termination "zverr1 won on time"]

1. e4 {[%clk 0:03:00.9]} 1... c5 {[%clk 0:02:59.5]} 2. Nf3 {[%clk 0:03:00.5]}
2... Nc6 {[%clk 0:02:59.6]} 3. Bb5 {[%clk 0:02:59.3]} 3... Nf6 {[%clk
0:02:59.8]} 4. Bxc6 {[%clk 0:02:52.4]} 4... dxc6 {[%clk 0:03:00.7]} 5. d3 {[%clk
0:02:52.1]} 5... Bg4 {[%clk 0:02:58.6]} 6. h3 {[%clk 0:02:49.7]} 6... Bh5 {[%clk
0:02:49.4]} 7. O-O {[%clk 0:02:42.1]} 7... Qc7 {[%clk 0:02:26.3]} 8. a4 {[%clk
0:02:29.9]} 8... h6 {[%clk 0:02:10.4]} 9. Na3 {[%clk 0:02:25]} 9... g5 {[%clk
0:01:57.9]} 10. Nc4 {[%clk 0:01:51.5]} 10... g4 {[%clk 0:01:45.5]} 11. hxg4
{[%clk 0:01:51.1]} 11... Bxg4 {[%clk 0:01:46.4]} 12. Nce5 {[%clk 0:01:40.6]}
12... Bxf3 {[%clk 0:01:32.5]} 13. Nxf3 {[%clk 0:01:38.7]} 13... O-O-O {[%clk
0:01:22.4]} 14. Be3 {[%clk 0:01:27]} 14... e5 {[%clk 0:01:07.3]} 15. Nh4 {[%clk
0:01:19.4]} 15... Rg8 {[%clk 0:00:56.5]} 16. Qf3 {[%clk 0:01:17.5]} 16... Ng4
{[%clk 0:00:50.1]} 17. a5 {[%clk 0:01:13.3]} 17... Kb8 {[%clk 0:00:41.1]} 18. a6
{[%clk 0:01:11.9]} 18... b6 {[%clk 0:00:41.1]} 19. Nf5 {[%clk 0:01:11.1]} 19...
Be7 {[%clk 0:00:37.6]} 20. Qh3 {[%clk 0:00:41.6]} 20... Rg6 {[%clk 0:00:31.7]}
21. g3 {[%clk 0:00:37.2]} 21... Rh8 {[%clk 0:00:27.2]} 22. Kg2 {[%clk
0:00:25.2]} 22... h5 {[%clk 0:00:26.7]} 23. f3 {[%clk 0:00:16]} 23... Nxe3+
{[%clk 0:00:14.2]} 24. Nxe3 {[%clk 0:00:16.9]} 24... Bg5 {[%clk 0:00:07.3]} 25.
Nf5 {[%clk 0:00:17.1]} 25... f6 {[%clk 0:00:05.7]} 26. Kf2 {[%clk 0:00:16.9]}
26... h4 {[%clk 0:00:05]} 27. gxh4 {[%clk 0:00:15.1]} 27... Bxh4+ {[%clk
0:00:03.5]} 28. Nxh4 {[%clk 0:00:10.6]} 28... Rgh6 {[%clk 0:00:03.9]} 29. Rh1
{[%clk 0:00:11.2]} 29... Rxh4 {[%clk 0:00:02.5]} 30. Qxh4 {[%clk 0:00:11.5]}
30... Rxh4 {[%clk 0:00:03.4]} 31. Rxh4 {[%clk 0:00:11.9]} 31... Qd8 {[%clk
0:00:04.2]} 32. Rah1 {[%clk 0:00:10.1]} 32... Qd4+ {[%clk 0:00:04.5]} 33. Kg3
{[%clk 0:00:10.6]} 33... Qe3 {[%clk 0:00:02.1]} 34. Rg4 {[%clk 0:00:06.7]} 34...
Kc7 {[%clk 0:00:01.4]} 35. Rh7+ {[%clk 0:00:06.6]} 35... Kd6 {[%clk 0:00:02]}
36. Rh1 {[%clk 0:00:03.5]} 36... b5 {[%clk 0:00:01.5]} 37. b3 {[%clk 0:00:03.3]}
37... c4 {[%clk 0:00:01.9]} 38. bxc4 {[%clk 0:00:03.3]} 38... b4 {[%clk
0:00:02]} 39. Rg6 {[%clk 0:00:01.6]} 39... Qf4+ {[%clk 0:00:02.5]} 40. Kg2
{[%clk 0:00:01.7]} 40... Kc5 {[%clk 0:00:03.2]} 0-1

[Event "Late-Titled-Tuesday-Blitz-June-04-2024"]
[Site "Chess.com"]
[Date "2024.06.04"]
[Round "5"]
[White "EsmeraldasAnderson03"]
[Black "kemelgallo"]
[Result "1-0"]
[WhiteElo "2468"]
[BlackElo "2701"]
[TimeControl "180+1"]
[EndTime "14:55:28 PDT"]
[Termination "EsmeraldasAnderson03 won on time"]

1. d4 {[%clk 0:02:57.7]} 1... d5 {[%clk 0:02:59.5]} 2. c4 {[%clk 0:02:57.5]}
2... e6 {[%clk 0:03:00]} 3. cxd5 {[%clk 0:02:55.1]} 3... exd5 {[%clk 0:03:00]}
4. Nc3 {[%clk 0:02:56]} 4... c6 {[%clk 0:02:59.2]} 5. Qc2 {[%clk 0:02:54]} 5...
Bd6 {[%clk 0:02:48.9]} 6. Nf3 {[%clk 0:02:53.9]} 6... h6 {[%clk 0:02:37.7]} 7.
e4 {[%clk 0:02:50.8]} 7... dxe4 {[%clk 0:02:36.5]} 8. Nxe4 {[%clk 0:02:51.7]}
8... Be7 {[%clk 0:02:34.1]} 9. Bc4 {[%clk 0:02:51.3]} 9... Nf6 {[%clk
0:02:33.3]} 10. O-O {[%clk 0:02:50.6]} 10... O-O {[%clk 0:02:31.9]} 11. Re1
{[%clk 0:02:48.1]} 11... Nd5 {[%clk 0:02:30.5]} 12. Ne5 {[%clk 0:02:44.3]} 12...
Nd7 {[%clk 0:02:22.6]} 13. Qe2 {[%clk 0:02:37.3]} 13... N7f6 {[%clk 0:02:00.1]}
14. Bd3 {[%clk 0:02:20.7]} 14... Nb4 {[%clk 0:01:55.2]} 15. Bb1 {[%clk 0:01:57]}
15... Qxd4 {[%clk 0:01:44.1]} 16. Nf3 {[%clk 0:01:56.3]} 16... Qd8 {[%clk
0:01:40]} 17. Nxf6+ {[%clk 0:01:56.2]} 17... gxf6 {[%clk 0:01:24.2]} 18. Qxe7
{[%clk 0:01:55.5]} 18... Qxe7 {[%clk 0:00:57.2]} 19. Rxe7 {[%clk 0:01:56.4]}
19... Be6 {[%clk 0:00:55.7]} 20. Rxb7 {[%clk 0:01:40.6]} 20... Rfd8 {[%clk
0:00:54.7]} 21. h3 {[%clk 0:01:16.3]} 21... Rd1+ {[%clk 0:00:52.7]} 22. Kh2
{[%clk 0:01:16.5]} 22... Rxc1 {[%clk 0:00:35.9]} 23. Rxb4 {[%clk 0:00:56.8]}
23... Bf5 {[%clk 0:00:36]} 24. Bxf5 {[%clk 0:00:57.1]} 24... Rxa1 {[%clk
0:00:36.1]} 25. Be4 {[%clk 0:00:55.1]} 25... Rc8 {[%clk 0:00:28.8]} 26. Rc4
{[%clk 0:00:54]} 26... Rxa2 {[%clk 0:00:27.5]} 27. b4 {[%clk 0:00:43.4]} 27...
Rxf2 {[%clk 0:00:17.1]} 28. Bxc6 {[%clk 0:00:40.8]} 28... Kf8 {[%clk 0:00:13.2]}
29. b5 {[%clk 0:00:40.4]} 29... Ra2 {[%clk 0:00:12.8]} 30. Rh4 {[%clk
0:00:35.9]} 30... Kg7 {[%clk 0:00:13]} 31. Nd4 {[%clk 0:00:36.2]} 31... Rf2
{[%clk 0:00:11.5]} 32. Kg3 {[%clk 0:00:28.7]} 32... Rf1 {[%clk 0:00:10.6]} 33.
Rg4+ {[%clk 0:00:28.5]} 33... Kf8 {[%clk 0:00:10.8]} 34. Rh4 {[%clk 0:00:29.1]}
34... Rd8 {[%clk 0:00:11.2]} 35. Nf3 {[%clk 0:00:28.3]} 35... Kg7 {[%clk
0:00:10.3]} 36. Ra4 {[%clk 0:00:28.2]} 36... Rd6 {[%clk 0:00:01.3]} 37. Rxa7
{[%clk 0:00:28.4]} 37... f5 {[%clk 0:00:01.9]} 38. Ra4 {[%clk 0:00:23.3]} 38...
Kf6 {[%clk 0:00:02]} 39. Be8 {[%clk 0:00:21.4]} 39... Ke7 {[%clk 0:00:01.9]} 40.
Bc6 {[%clk 0:00:21]} 40... Rdd1 {[%clk 0:00:01.8]} 41. b6 {[%clk 0:00:20]} 41...
Rb1 {[%clk 0:00:02.1]} 42. b7 {[%clk 0:00:19.9]} 42... Rfc1 {[%clk 0:00:02.7]}
43. Nd4 {[%clk 0:00:19.5]} 43... Rc3+ {[%clk 0:00:02.1]} 44. Bf3 {[%clk
0:00:19.9]} 1-0